Cogmind - Beta 17 @@@ ROGUE MODE // 2026.07.16 @ 00:31:51 Player: Marienkos Result: Destroyed by G-47 Trooper with Particle Gun Performance ------------- Evolutions (2) 1000 Regions Visited (4) 800 Robots Destroyed (72) 360 Value Destroyed (1776) 1776 Prototype IDs (3) 60 Alien Tech Used (0) 0 Bonus (-144) -144 TOTAL SCORE: 3852 Bonus ------- High Alert Combat Kills 41 Follower Combat Kills 138 Friendly Fire -323 Cogmind --------- Core Integrity 0/550 Matter 267/300 Energy 100/100 System Corruption 0% Temperature Cool (9) Movement Core (100) Ox1 Location -8/Materials Parts ------- > --- POWER (1) -------- (None) > --- PROPULSION (3) --- (None) > --- UTILITY (5) ------ Advanced Visual Processing Unit > --- WEAPON (2) ------- Autogun Heavy Hammer > --- INVENTORY (5) ---- (None) Peak State ------------ > --- POWER ------------ Cooled Ion Engine > --- PROPULSION ------- Aerolev Unit Aerolev Unit > --- UTILITY ---------- Machine Analyzer Visual Processing Unit Seismic Detector Improved Targeting Computer Light Armor Plating > --- WEAPON ----------- Light EM Pulse Cannon EMP Blaster > --- INVENTORY -------- Cooled Ion Engine Wheel Improved EM Shotgun Improved EM Shotgun Light Cannon [Rating: 25] Favorites ----------- Power Cooled Ion Engine Engine Cooled Ion Engine Propulsion Aerolev Unit Wheel Compact Wheel Hover Unit Aerolev Unit Utility Seismic Detector Device Seismic Detector Processor Targeting Computer Protection Light Armor Plating Weapon Improved Grenade Launcher Energy Gun Improved EM Shotgun Energy Cannon Light EM Pulse Cannon Ballistic Gun Assault Rifle Ballistic Cannon Flak Cannon Launcher Improved Grenade Launcher Impact Weapon Heavy Hammer Build | -11 -10 -9 -9 -8 ------- Run | Yrd Mat Mat Sto Mat Slots Evolved 4 | . . 2 . 2 Power . | . . . . . Propulsion 1 | . . . . 1 Utility 3 | . . 2 . 1 Weapon . | . . . . . Parts Attached 38 | 5 7 10 5 11 Power 6 | 1 2 3 . . Engine 6 | 1 2 3 . . Core . | . . . . . Reactor . | . . . . . Propulsion 7 | 2 1 2 . 2 Treads . | . . . . . Leg . | . . . . . Wheel 4 | 2 1 . . 1 Hover 3 | . . 2 . 1 Flight . | . . . . . Utility 11 | . 2 3 3 3 Device 3 | . 1 2 . . Storage . | . . . . . Processor 6 | . 1 . 2 3 Hackware . | . . . . . Protection 2 | . . 1 1 . Artifact . | . . . . . Weapon 14 | 2 2 2 2 6 Energy Gun 3 | 1 . . . 2 Energy Cannon 1 | . . . 1 . Ballistic Gun 2 | 1 . . . 1 Ballistic Cannon 1 | . . . . 1 Launcher 6 | . 2 2 1 1 Special Weapon . | . . . . . Impact Weapon 1 | . . . . 1 Slashing Weapon . | . . . . . Piercing Weapon . | . . . . . Special Melee Weapon . | . . . . . Unidentified Prototypes 3 | . . 2 . 1 Parts Lost 26 | . 5 2 3 16 Power 2 | . . . . 2 Propulsion 7 | . 2 1 . 4 Utility 6 | . . 1 1 4 Weapon 11 | . 3 . 2 6 Highest Loss Streak 6 | . 4 1 1 6 To Critical Strikes . | . . . . . Average Backups 4 | 1 4 4 5 3 Power . | . . 1 1 . Propulsion . | . . . 1 . Utility . | . . . . . Weapon 2 | . 2 2 3 1 Tool/Special . | . . . . . Unused Backups 2 | . 1 . . 1 Power . | . . . . . Propulsion . | . . . . . Utility . | . . . . . Weapon 2 | . 1 . . 1 Tool/Special . | . . . . . Average Slot Usage (%) 82 | . 78 88 97 71 Engine 10 | . 14 11 11 7 Wheel 5 | . 19 1 . . Hover 13 | . . 19 22 13 Device 13 | . 12 24 16 7 Processor 15 | . 11 11 14 21 Protection 4 | . . . 11 5 Energy Cannon 3 | . . . 8 4 Ballistic Gun 3 | . 12 . . . Launcher 10 | . 5 20 13 6 Peak Build Rating 25 | 5 7 24 23 25 Average Rating 16 | 3 5 19 21 20 On Entrance 10 | . 5 4 22 22 Avg Prop Armor Cover (%) 4 | . . . . 4 Naked Turns . | . . . . . Heaviest Build 25 | 9 11 25 25 21 Greatest Support 26 | 26 26 16 16 16 Greatest Overweight (x) 2 | . 2 2 1 2 Average Overweight (x) . | . . . 1 1 Largest Inventory Capacity 5 | 5 5 5 5 5 Average Capacity 5 | 5 5 5 5 5 Most Carried 5 | 2 5 5 5 5 Average Carried 4 | 1 4 4 4 3 Final Capacity 5 | 5 5 5 5 5 Final Carried 5 | 2 4 5 5 . Class Distribution -------------------- 100% | Mutant Dominant Class ---------------- Mutant | -10/Materials Mutant | -9/Materials Mutant | -9/Storage Mutant | -8/Materials Resources | -11 -10 -9 -9 -8 ----------- Run | Yrd Mat Mat Sto Mat Matter Collected 1405 | 146 374 163 446 276 Remotely . | . . . . . Salvage Created 2161 | . 355 356 533 917 Parts 127 | . 21 36 27 43 Haulers Intercepted 3 | . . 2 . 1 Recyclers Shooed 6 | . 3 . 1 2 Parts Field Recycled . | . . . . . Retrieved Matter . | . . . . . Parts Self-Destructed . | . . . . . Prevented . | . . . . . Parts Restored . | . . . . . Kills | -11 -10 -9 -9 -8 ------- Run | Yrd Mat Mat Sto Mat Combat Hostiles Destroyed 49 | . 10 9 14 16 Melee 1 | . . . . 1 Guns 11 | . 6 . . 5 Cannons 3 | . . . 2 1 AOE 32 | . 4 9 12 7 Classes Destroyed 13 | . 7 2 3 1 Worker 7 | . 1 . 2 4 Builder 3 | . 1 1 . 1 Tunneler 2 | . 1 1 . . Hauler 3 | . . 2 . 1 Recycler 4 | . 1 1 1 1 Watcher 3 | . 1 1 1 . Swarmer 14 | . 3 4 3 4 Grunt 23 | . 7 2 7 7 Brawler 1 | . . . 1 . Duelist 1 | . . . 1 . Protector 1 | . . . 1 . Sentry 8 | . . 3 1 4 Hunter 1 | . . . . 1 Thug 1 | . . . 1 . Best Kill Streak 8 | . 8 6 6 7 Combat Bots Only 6 | . 3 5 6 4 Max Kills in Single Turn 4 | . 2 3 4 3 Gunslinging . | . . . . . Exploded 4 | . 1 3 4 2 Melee 1 | . . . . 1 Uniques/NPCs Destroyed . | . . . . . Combat | -11 -10 -9 -9 -8 -------- Run | Yrd Mat Mat Sto Mat Hostile Shots Fired 309 | . 94 33 18 164 Missed 112 | . 40 11 4 57 Hits 197 | . 54 22 14 107 Projectile 197 | . 54 22 14 107 Critical Strikes 6 | . 1 1 . 4 Damage Taken 3019 | 4 676 350 309 1680 Core 956 | . 224 79 89 564 Absorbed by Shields . | . . . . . Regen/Repaired (Parts) 302 | . 133 . . 169 Core Remaining (%) 56 | 100 10 . 58 . Volleys Fired 109 | . 46 10 17 36 Largest 2 | . 2 2 2 2 Hottest 92 | . 50 72 92 89 Shots Fired 156 | . 50 20 33 53 Gun 57 | . 42 . . 15 Cannon 30 | . . . 13 17 Launcher 69 | . 8 20 20 21 Special . | . . . . . Kinetic 56 | . 42 . . 14 Thermal . | . . . . . Explosive 38 | . 8 20 10 . Electromagnetic 62 | . . . 23 39 Robot Hit Streak 13 | . 8 12 13 13 Robot Miss Streak 8 | . 3 1 2 8 Penetration Max . | . . . . . Secondary Targets . | . . . . . Shots Hit Robots 121 | . 37 15 24 45 Core Hits 115 | . 26 22 33 34 Critical Kills 2 | . 1 . . 1 Critical Parts Destroyed 3 | . . . . 3 Critical Strikes 5 | . 1 . . 4 Destroy 1 | . 1 . . . Smash 4 | . . . . 4 Melee Attacks 11 | . . . . 11 Impact 11 | . . . . 11 Slashing . | . . . . . Piercing . | . . . . . Sneak Attacks 3 | . . . . 3 Combat Hostiles . | . . . . . Follow-up Attacks . | . . . . . Damage Inflicted 5076 | 8 874 965 1661 1568 Guns 552 | . 363 . . 189 Cannons 468 | . . . 225 243 Explosions 3636 | . 506 965 1431 734 Melee 402 | . . . . 402 Ramming 18 | 8 5 . 5 . Kinetic 513 | . 363 . . 150 Thermal 192 | . . . 93 99 Explosive 2535 | . 506 936 1093 . Electromagnetic 1416 | . . 29 470 917 Impact 402 | . . . . 402 Slashing . | . . . . . Piercing . | . . . . . Highest Corruption . | . . . . . Average Corruption . | . . . . . Corruption Purged . | . . . . . Corruption Blocked . | . . . . . Overload Shots . | . . . . . Overflow Damage 333 | . . 18 30 285 Projectiles . | . . . . . Explosions 51 | . . 18 30 3 Melee 282 | . . . . 282 Knockbacks 1 | . . . . 1 Impact . | . . . . . Kinetic 1 | . . . . 1 Secondary . | . . . . . Self-Inflicted Damage 409 | 4 117 45 98 145 Shots 26 | . 5 2 6 13 Rammed 4 | 1 2 . 1 . Targets Rammed 4 | 1 2 . 1 . Kicked . | . . . . . Crushed . | . . . . . Highest Temperature 94 | . 9 42 82 94 Average Temperature 31 | . 3 16 30 44 Received Heat Transfer 996 | . 258 102 69 567 Siege Activations . | . . . . . Martial Activations . | . . . . . Shielding Activations . | . . . . . Robots Disrupted . | . . . . . Combat Hostiles . | . . . . . Robots Corrupted 2 | . . . . 2 Combat Hostiles 2 | . . . . 2 Parts Fried 14 | . . . 2 12 Impact Corruptions 8 | . . . . 8 Robots Melted . | . . . . . Combat Hostiles . | . . . . . Parts Melted 1 | . . . 1 . Heat Transferred 400 | . . . 250 150 Parts Sabotaged . | . . . . . Parts Stolen . | . . . . . Parts Stripped . | . . . . . Power Chain Reactions 7 | . . . 3 4 Alert | -11 -10 -9 -9 -8 ------- Run | Yrd Mat Mat Sto Mat Maximum Alert Level 2 | . . 1 2 1 Low Security (%) 57 | 100 100 73 22 41 Level 1 27 | . . 26 16 58 Level 2 14 | . . . 60 . Level 3 . | . . . . . Level 4 . | . . . . . Level 5 . | . . . . . High Security . | . . . . . Max Security . | . . . . . Peak Influence 518 | . 121 348 518 261 Initial 201 | . . 33 142 201 Average 191 | . 50 138 369 204 Influence Increases 1895 | . 327 448 616 504 Destroy 0b10 Robot/C 1040 | . 200 180 340 320 Destroy 0b10 Robot/NC 120 | . 25 30 30 35 Destroy Leader 252 | . 52 56 72 72 Allied During Kill 38 | . . . 38 . Successful Hack 22 | . 7 7 8 . Disable Machine 150 | . . 60 75 15 Destroy Structure 228 | . 43 115 53 17 Lose Combat Pursuer 45 | . . . . 45 Influence Decreases 1660 | . 248 189 476 747 Entered New Map 519 | . . 46 196 277 Time Decay 871 | . 208 123 230 310 Lost Part 250 | . 40 20 30 160 Lost Ally 20 | . . . 20 . Squads Dispatched 11 | . 5 1 4 1 Investigation 7 | . 4 . 2 1 Extermination . | . . . . . Reinforcement 2 | . 1 1 . . Assault 2 | . . . 2 . Garrison . | . . . . . Intercept . | . . . . . Searches Triggered . | . . . . . Construction Impeded . | . . . . . Haulers Reinforced . | . . . . . Active Scanning Responses . | . . . . . Cargo Convoy Interrupts . | . . . . . Stealth | -11 -10 -9 -9 -8 --------- Run | Yrd Mat Mat Sto Mat Distress Signals 3 | . . 1 . 2 Communications Jammed . | . . . . . Distress Signals . | . . . . . Times Spotted 84 | . 18 10 32 24 Peak Tracking Total 10 | . 5 3 10 6 Tactical Retreats 2 | . . . . 2 Traps | -11 -10 -9 -9 -8 ------- Run | Yrd Mat Mat Sto Mat Traps Triggered 9 | . 2 . 3 4 Indirectly . | . . . . . Trap Hack Attempts . | . . . . . Triggered . | . . . . . Disarmed . | . . . . . Reprogrammed . | . . . . . Reused . | . . . . . Traps Extracted . | . . . . . Installed . | . . . . . Triggered . | . . . . . Machines | -11 -10 -9 -9 -8 ---------- Run | Yrd Mat Mat Sto Mat Machines Disabled 10 | . . 4 5 1 Max in Single Turn 1 | . . 1 1 1 Machines Repaired . | . . . . . Machines Dismantled . | . . . . . Machines Sabotaged . | . . . . . Overloaded Fab Kills . | . . . . . Hacking | -11 -10 -9 -9 -8 --------- Run | Yrd Mat Mat Sto Mat Machines Accessed 8 | . 4 1 2 1 Terminals 4 | . 2 1 1 . Fabricators . | . . . . . Repair Stations 2 | . 1 . . 1 Recycling Units 2 | . 1 . 1 . Scanalyzers . | . . . . . Garrison Access . | . . . . . Total Hacks 33 | . 12 5 7 9 Successful 19 | . 7 1 5 6 Failed 14 | . 5 4 2 3 Catastrophic 4 | . 2 1 1 . Database Lockouts . | . . . . . Manual 6 | . 4 1 1 . Terminals 13 | . 5 5 3 . Fabricators . | . . . . . Repair Stations 14 | . 5 . . 9 Recycling Units 6 | . 2 . 4 . Scanalyzers . | . . . . . Garrison Access . | . . . . . Terminal Hacks 4 | . 2 1 1 . Level Access Points 1 | . . . 1 . Branch Access Points 2 | . 1 1 . . Recall Investigation 1 | . 1 . . . Fabricator Hacks . | . . . . . Repair Station Hacks 10 | . 4 . . 6 Scan Component 5 | . 2 . . 3 Repair 5 | . 2 . . 3 Recycling Unit Hacks 5 | . 1 . 4 . Recycle Component 1 | . . . 1 . Report Inventory 2 | . . . 2 . Retrieve Components 2 | . 1 . 1 . Scanalyzer . | . . . . . Garrison Access Hacks . | . . . . . Unauthorized Hacks . | . . . . . Terminals . | . . . . . Fabricators . | . . . . . Repair Stations . | . . . . . Recycling Units . | . . . . . Scanalyzers . | . . . . . Garrison Access . | . . . . . Data Cores Recovered . | . . . . . Used . | . . . . . Hacking Detections 7 | . 3 1 2 1 Full Trace Events 5 | . 3 . 1 1 Feedback Events . | . . . . . Feedback Blocked . | . . . . . Robot Schematics Acquired . | . . . . . Robots Built . | . . . . . Authchips . | . . . . . Time . | . . . . . Total Robot Build Rating . | . . . . . Part Schematics Acquired . | . . . . . Parts Built . | . . . . . Authchips . | . . . . . Time . | . . . . . Total Part Build Rating . | . . . . . Part Studies Acquired . | . . . . . Parts Repaired 5 | . 2 . . 3 Time 130 | . 52 . . 78 Parts Recycled 1 | . . . 1 . Recycled Matter . | . . . . . Retrieved Matter . | . . . . . Retrieved Components 4 | . 3 . 1 . Parts Scanalyzed . | . . . . . Part Schematics Acquired . | . . . . . Parts Damaged . | . . . . . Bothacking | -11 -10 -9 -9 -8 ------------ Run | Yrd Mat Mat Sto Mat Used RIF Installer . | . . . . . Robots Hacked . | . . . . . Non-combat . | . . . . . Combat . | . . . . . Robot Hacks Applied . | . . . . . Relay Couplers Released . | . . . . . Fabnet Peak Effective % . | . . . . . Robots Rewired . | . . . . . Allies Hacked . | . . . . . Hacks Repelled . | . . . . . Allies | -11 -10 -9 -9 -8 -------- Run | Yrd Mat Mat Sto Mat Total Allies 2 | . . . 2 . Largest Group 2 | . . . 2 . Highest-Rated Group 62 | . . . 62 . Highest-Rated Ally 31 | . . . 31 . Total Orders . | . . . . . Ally Attacks 40 | . . . 40 . Total Damage 403 | . . . 403 . Kills 5 | . . . 5 . Allies Corrupted . | . . . . . Allies Melted . | . . . . . Intel | -11 -10 -9 -9 -8 ------- Run | Yrd Mat Mat Sto Mat Active Infowar (turns) 1949 | . 461 308 496 684 Optics 869 | . . . 185 684 Structural 666 | . . 306 360 . Seismic 1708 | . 461 308 356 583 Machine Analysis 532 | . . . . 532 Robot Analysis Total . | . . . . . Derelict Logs Recovered . | . . . . . Drone Launches . | . . . . . Drone Recoveries . | . . . . . Exploration | -11 -10 -9 -9 -8 ------------- Run | Yrd Mat Mat Sto Mat Turns Passed 2042 | 50 504 308 496 684 Spaces Moved 1463 | 46 348 242 403 424 Core 16 | 3 13 . . . Treads . | . . . . . Legs . | . . . . . Wheels 430 | 43 335 13 . 39 Hover 1017 | . . 229 403 385 Flight . | . . . . . Fastest Speed 46 | 50 90 100 106 46 Average Speed 102 | 86 95 106 106 105 Slowest Speed 170 | 90 150 170 106 170 Overloaded Moves . | . . . . . Propulsion Burnouts . | . . . . . Robots Hopped . | . . . . . Potential Cave-ins . | . . . . . Cave-ins Triggered . | . . . . . Exploration Rate (%) 28 | 4 53 21 40 25 Regions Visited 4 Branch Regions 1 Pre-discovered Areas . | . . . . . Known Exits Taken 2 | . . 1 1 . Unknown Exits Taken 2 | 1 1 . . . Scrap Searched . | . . . . . Spaces Dug . | . . . . . Terrain Destroyed 296 | . 47 165 68 16 Melee . | . . . . . Projectile . | . . . . . AOE 296 | . 47 165 68 16 Terrain Rammed . | . . . . . Walls Destroyed . | . . . . . Machines Disabled . | . . . . . Actions | -11 -10 -9 -9 -8 --------- Run | Yrd Mat Mat Sto Mat Total 1808 | 53 465 270 437 583 Wait 144 | . 52 . 6 86 Move 1460 | 46 347 241 402 424 Hop . | . . . . . Pick Up 11 | 2 4 2 2 1 Fast Attach 41 | 5 7 8 4 17 Attach 7 | . 1 1 . 5 Detach 3 | . . 1 . 2 Swap 9 | . 4 3 2 . Drop 10 | . 2 4 3 1 Fire 109 | . 46 10 17 36 Melee 11 | . . . . 11 Ram 3 | . 2 . 1 . Kick . | . . . . . Crush . | . . . . . Escape Stasis . | . . . . . Rewire . | . . . . . Trap . | . . . . . Miscellaneous . | . . . . . Route ------- -11/Scrapyard -10/Materials (discovered 2 exits: *Mat / *Min) -9/Materials (discovered 4 exits: *Mat / Min / *Sto x2) -9/Storage -8/Materials History --------- Turn | Location | Event 16 | -11/Scrapyard | Discovered new exit (range 16) 51 | -11/Scrapyard | Entered Materials 159 | -10/Materials | Discovered new exit (range 5) 248 | -10/Materials | Identified exit to Mines 325 | -10/Materials | Build established: Mutant 326 | -10/Materials | Lost 4 parts (2n2w) 400 | -10/Materials | Repaired Ion Engine 427 | -10/Materials | Repaired Assault Rifle 452 | -10/Materials | Core integrity fell below 50% 469 | -10/Materials | Core integrity fell below 20% 555 | -10/Materials | Entered another Materials area 555 | -9/Materials | Evolved 2 slots: Utility x2 672 | -9/Materials | Identified exit to Mines 672 | -9/Materials | Identified exit to Storage 721 | -9/Materials | Discovered new exit (range 16) 863 | -9/Materials | Entered Storage 887 | -9/Storage | Met a pair of Derelict thieves 1089 | -9/Storage | Identified exit to Materials 1359 | -9/Storage | Entered Materials 1359 | -8/Materials | Evolved 2 slots: Propulsion x1, Utility x1 1418 | -8/Materials | Repaired Seismic Detector 1445 | -8/Materials | Repaired Lgt. Armor Plating 1703 | -8/Materials | Repaired Lgt. Armor Plating 1768 | -8/Materials | Lost 4 parts (1n1u2w) 1877 | -8/Materials | Lost 6 parts (1p2n1u2w) 1978 | -8/Materials | Core integrity fell below 50% 1999 | -8/Materials | Core integrity fell below 20% 2019 | -8/Materials | Lost 3 parts (1p1u1w) 2043 | -8/Materials | Destroyed by G-47 Trooper with Particle Gun Last Messages --------------- Destroyed Wheel. K-01 Serf system corrupted by crushing effect. Med. Matter Pod fried. Lgt. Ion Engine fried. Wheel fried. K-01 Serf destroyed. Acquired Autogun. R-06 Scavenger inserts Corrupted Tractor Beam into recycling unit. R-06 Scavenger inserts Corrupted Hvy. Assault Rifle into recycling unit. R-06 Scavenger inserts Corrupted Imp. Ion Engine into recycling unit. Aerolev Unit destroyed. Critical hit (Burn: +37). K-01 Serf collects debris. R-06 Scavenger inserts Lgt. Treads into recycling unit. K-01 Serf collects debris. G-47 Trooper destroyed. Map ----- +----------------------------------------------------+ | | | | | | | | | | | ????????????????????????????????????????? | | ????????????????????????????????????????? | | ????????????????????????????????????????? | | ????????????????????????????????????????? | | ????????????????????????????????????????? | | ????????????????????????????????????????? | | ???????????????????######???????????????? | | ???????????????????# #######?????????? | | ???????????????????# ##########+ | | ???????????????????# %!% = | | ?????????+?????????# %# ! | | ?????????? ????????## ## | | ??????????? ??T?????# ## ##########+ | | ???????????? ???????# ### ##?????????? | | ????????????# ??????# #?# #??????????" | | ????????????# ????## ### #?????????"" | | ????????????+ ##### ## #?????????"" | | ????????????# % ## #?????????"" | | ????????????# ! ## #??????????" | | ????????????#####g## ## ##?????????? | | ?????????????# @%=###### ########### | | ?????????????# #????# | | ?????????????# r #????# " | | ?????????????# #????# T | | ?????????????# "Y" #????# ##### | | ?????????????# """ #????#######???# | | ?????????????# #??????????????# "" | | ?????????????#######?????????????## "" | | ?????????????????????????????##### "" | | ???????????????????????? | | ??????????????????????????????#### | | ?????????????????????????????????## ##### | | ??????????????????????????????????# ????? | | ??????????????????????????????????#/????? | | ?????????????????????????????????? ????? | | ?????????????????????????????????? ?"""? | | ?????????????????????????????????# ?"""? | | ?????????????????????????????????# ?"""? | | ?????????????????????????????????# ????? | | ?????????????????????????????????# ????? | | ?????????????????????????????????? ????? | | ??????????????????????????????????????"T" | | ??????????????????????????????????????""" | | ????????????????????????????????????????? | | ????????????????????????????????????????? | +----------------------------------------------------+ Best States ------------- Heat Dissipation 31 Energy Generation 14 Energy Capacity 280 Matter Stores 300 Matter Capacity 300 Sight Range 20 Terrain Scan Density 10 Armor Coverage 150 Evasion (%) 55 Targeting Accuracy 6 Particle Charging 15 Item Schematics ----------------- None Robot Schematics ------------------ None Fabricated ------------ Nothing Repaired ---------- Ion Engine | 15% | -10/Materials Assault Rifle | 18% | -10/Materials Seismic Detector | 5% | -8/Materials Lgt. Armor Plating | 21% | -8/Materials Lgt. Armor Plating | 12% | -8/Materials Studied --------- None Alien Tech Used ----------------- None Achievements -------------- Backstab Hey, That's Mine! Challenges ------------ None Game ------ Seed DeflectorSlugPurifier Manual? 0 Play Time 00:28:44 Cumulative 10.9 hours Start 2026.07.16 @ 00:04:55 End 2026.07.16 @ 00:31:51 Sessions 1 Manual Loads 0 Difficulty Rogue Special Mode None Game No. 27 Rogue 27 Adventurer 0 Explorer 0 Win Type - Total 0 Types 0/0/0/0/0/0/0/0/0/0 Lore% 14 Gallery% 12 Achievement% 12 Wizard Run 0 Options --------- Layout 1 ASCII 0 Keyboard 1 Movement Arrows Keybinds 0 Fullscreen 1 Font 36/SmallcapsGlow++ Map View 53x45 Zoom Use 0% Tactical HUD 0 Map Filters NONE Filters NONE Steam 1 RUN: 2fe846af-597f-464c-8eab-bb297d11c452